bitfinex/quotes_ETHUSD_20250210
["timestamp","ask_amount","ask_price","bid_price","bid_amount"]
[1739204310545,3.74686,2668.9,2668.3,4.52092]
[1739204310746,3.74702,2668.8,2668.3,4.52092]
[1739204311053,8.26963,2669.1,2668.4,3.74754]
[1739204311256,3.0,2668.9,2668.4,3.74754]
[1739204311458,6.74694,2668.9,2668.3,4.52092]
[1739204311624,3.0,2668.9,2668.3,4.52092]
[1739204312028,3.74704,2668.8,2668.3,0.7733]
[1739204312232,3.74717,2668.7,2668.1,10.62361]
[1739204312855,3.74704,2668.8,2668.1,10.62361]
[1739204313160,6.74697,2668.9,2668.3,3.7476]
[1739204313456,3.74701,2668.8,2668.1,10.6236]
[1739204313659,3.74714,2668.7,2668.1,10.6236]
[1739204313866,0.7763,2668.5,2668.1,6.87566]
[1739204314659,0.7763,2668.5,2668.1,10.62361]
[1739204314846,3.75458,2668.8,2668.3,3.74768]
[1739204314847,4.52338,2668.8,2668.3,3.74768]
[1739204315944,3.74739,2668.6,2668.2,6.87566]
[1739204316140,3.74744,2668.5,2668.3,0.06221389]
[1739204316347,4.52386,2668.4,2668.2,6.87566]
[1739204316579,4.52386,2668.4,2668.3,0.06221389]
[1739204316774,4.52386,2668.4,2668.2,6.87566]
[1739204316979,3.7477,2668.3,2668.2,6.87566]
[1739204317174,3.7477,2668.3,2667.1,3.291]
[1739204317175,3.74819,2668.0,2667.4,6.87566]
[1739204317441,7.49586,2668.2,2667.6,3.74867]
[1739204317675,3.7479,2668.2,2667.6,3.74859]
[1739204317887,3.74784,2668.2,2667.4,10.62458]
[1739204318085,3.74821,2668.0,2667.5,3.74879]
[1739204318291,3.74821,2668.0,2667.5,3.81177619]
[1739204318674,7.49581,2668.2,2667.6,3.74865]
[1739204318883,3.74807,2668.1,2667.5,3.81176619]
[1739204319078,3.74814,2668.0,2667.7,0.06283057]
[1739204319292,3.0,2668.2,2667.6,3.81156337]
[1739204319483,3.74806,2668.1,2667.8,0.06272777]
[1739204319666,3.74806,2668.1,2667.7,0.06283057]
[1739204319866,3.74814,2668.0,2667.9,0.06262498]
[1739204320092,3.74826,2667.9,2667.8,0.06272777]
[1739204320294,3.74862,2667.7,2667.4,6.87566]
[1739204320492,3.74869,2667.6,2667.4,6.87566]
[1739204320697,0.7763,2667.9,2667.5,3.74879]
[1739204320865,3.0,2668.0,2667.5,3.74873]
[1739204321069,3.0,2668.0,2667.6,4.52187]
[1739204321470,6.74816,2668.0,2667.6,0.7733]
[1739204322298,4.52423,2668.2,2667.6,0.7733]
[1739204322497,3.74793,2668.2,2667.7,3.74852]
[1739204322669,6.74791,2668.2,2667.7,3.74852]
[1739204323216,6.74791,2668.2,2667.6,0.7733]
[1739204323217,3.7481,2668.1,2667.6,0.7733]
[1739204323380,3.74816,2668.0,2667.5,3.74873]
[1739204323708,3.0,2668.2,2667.5,4.2987]
[1739204323911,3.74797,2668.2,2667.7,3.74852]
[1739204324211,3.74806,2668.1,2667.5,4.2987]
[1739204324808,3.74816,2668.0,2667.5,4.2987]
[1739204325215,3.74795,2668.2,2667.6,3.74868]
[1739204325412,0.7763,2668.4,2667.8,0.8121]
[1739204325711,8.27157,2668.4,2667.9,3.74822]
[1739204325910,8.27157,2668.4,2667.8,0.8121]
[1739204325911,3.74781,2668.3,2667.8,0.8121]
[1739204326115,4.52393,2668.4,2667.8,0.8121]
[1739204326116,0.7763,2668.4,2667.8,0.8121]
[1739204326317,3.74799,2668.1,2667.8,0.8121]
[1739204326616,3.7477,2668.3,2667.8,0.8121]
[1739204326823,7.52388,2668.4,2667.9,3.74815]
[1739204327122,0.7884,2668.8,2667.9,6.87566]
[1739204327319,0.7884,2668.8,2668.3,3.7476]
[1739204327491,0.7884,2668.8,2668.4,3.74754]
[1739204327687,3.7884,2668.8,2668.3,3.7476]
[1739204327885,7.53542,2668.8,2668.3,3.7476]
[1739204328091,3.74723,2668.7,2668.1,3.74791]
[1739204328293,3.74723,2668.7,2668.0,6.87566]
[1739204328493,3.74723,2668.7,2668.1,3.74788]
[1739204328826,3.7884,2668.8,2668.3,3.74769]
[1739204329421,3.74718,2668.7,2668.2,3.74784]
[1739204329823,3.7884,2668.8,2668.3,3.74765]
[1739204330122,3.7884,2668.8,2668.2,3.74784]
[1739204330326,3.74721,2668.7,2668.2,3.74784]
[1739204330658,3.74721,2668.7,2668.2,7.49558]
[1739204330860,3.74721,2668.7,2668.2,3.74774]
[1739204331021,3.74728,2668.6,2668.1,6.87566]
[1739204331221,3.74728,2668.6,2668.1,10.62353]
[1739204331559,7.5355,2668.8,2668.2,3.7477]
[1739204331715,7.5355,2668.8,2668.2,7.49545]
[1739204332118,7.5355,2668.8,2668.3,3.74769]
[1739204332862,7.5355,2668.8,2668.1,6.87566]
[1739204332863,3.7472,2668.7,2668.1,6.87566]
[1739204333155,3.74728,2668.6,2668.2,3.74783]
[1739204333321,7.53549,2668.8,2668.2,3.8101234]
[1739204333538,3.74721,2668.7,2668.2,7.5578734]
[1739204333756,7.53549,2668.8,2668.3,3.74769]
[1739204334167,0.7884,2668.8,2668.4,3.80965788]
[1739204334374,0.7884,2668.8,2668.4,0.06216788]
[1739204334932,3.74715,2668.7,2668.4,0.06216788]
[1739204335128,3.74715,2668.7,2668.2,3.74773]
[1739204335436,3.74715,2668.7,2668.3,0.06195691]
[1739204335636,3.74715,2668.7,2668.2,3.74773]
[1739204335875,3.74715,2668.7,2668.3,0.06195691]
[1739204336248,3.74715,2668.7,2668.2,3.74773]
[1739204336450,3.74715,2668.7,2668.3,0.06195691]
[1739204336639,3.74715,2668.7,2668.2,10.62339]
[1739204336835,3.74715,2668.7,2668.3,0.06195691]
[1739204337042,3.74715,2668.7,2668.2,10.62339]
[1739204337284,3.74715,2668.7,2668.3,0.06195691]
[1739204337581,3.74715,2668.7,2668.2,10.62339]
[1739204338109,3.74715,2668.7,2668.3,0.06195691]
[1739204338380,3.74715,2668.7,2668.2,10.62339]
[1739204338579,7.4944,2668.7,2668.2,10.62339]
[1739204338751,3.74715,2668.7,2668.3,0.06195691]
[1739204339092,3.7477,2668.3,2668.2,6.87566]
[1739204339448,3.74757,2668.4,2668.2,6.87566]
[1739204339673,3.0,2668.5,2668.2,6.87566]
[1739204339980,3.0,2668.7,2668.2,10.62343]
[1739204340281,6.74721,2668.7,2668.2,10.62343]
[1739204340784,3.74741,2668.6,2668.2,6.87566]
[1739204340955,6.74721,2668.7,2668.2,10.62344]
[1739204341353,0.7884,2668.8,2668.3,3.78517453]
[1739204341557,4.5355,2668.8,2668.3,3.7477]
[1739204341900,0.7884,2668.8,2668.4,3.74755]
[1739204342109,4.53551,2668.8,2668.3,3.7477]
[1739204342263,0.7884,2668.8,2668.3,3.7477]
[1739204342462,3.74744,2668.5,2668.2,6.87566]
[1739204342661,3.74729,2668.6,2668.2,6.87566]
[1739204342879,3.74723,2668.7,2668.2,10.62347]
[1739204343093,3.74728,2668.6,2668.2,6.87566]
[1739204343764,3.74732,2668.6,2668.2,6.87566]
[1739204343966,3.74752,2668.5,2668.2,6.87566]
[1739204344164,3.74718,2668.7,2668.2,6.87566]
[1739204344488,3.7473,2668.6,2668.2,6.87566]
[1739204344685,7.49468,2668.6,2668.2,6.87566]
[1739204345005,3.74757,2668.4,2668.2,6.87566]
[1739204345875,3.74734,2668.6,2668.2,6.87566]
[1739204346100,3.74742,2668.5,2668.2,6.87566]
[1739204347289,3.74756,2668.4,2668.2,6.87566]
[1739204348060,3.7477,2668.3,2668.2,6.87566]
[1739204348256,3.7483,2667.9,2667.4,4.53556]
[1739204348493,3.74844,2667.8,2667.4,7.66226]
[1739204348700,3.7482,2668.0,2667.4,11.4111]
[1739204348875,3.74819,2668.0,2667.4,7.66226]
[1739204349078,3.74843,2667.8,2667.4,7.66226]
[1739204350804,3.74858,2667.7,2667.4,7.66226]
[1739204351016,3.74843,2667.8,2667.4,7.66226]
[1739204351317,3.74947,2667.1,2666.7,6.87566]
[1739204351475,3.74947,2667.1,2666.6,0.39177738]
[1739204351677,4.55959,2667.5,2666.7,3.74993]
[1739204352018,0.8107,2667.5,2666.6,0.39177738]
[1739204352373,3.74995,2666.7,2666.6,0.39177738]
[1739204352974,3.74995,2666.7,2665.8,3.75116]
[1739204352975,0.0075,2666.4,2665.3,7.8080379]
[1739204353177,3.75147,2665.7,2665.3,1.3242311]
[1739204353378,3.7515,2665.6,2665.3,8.1998911]
[1739204353578,3.7514,2665.7,2665.3,7.8080379]
[1739204353777,3.75113,2665.9,2665.3,7.8080379]
[1739204354623,3.7513,2665.8,2665.3,7.8080379]
[1739204354787,4.56267745,2666.2,2665.3,7.8080379]
[1739204354788,3.75097,2666.0,2665.3,7.8080379]
[1739204354991,3.75097,2666.0,2665.3,11.5598579]
[1739204355389,3.75109,2665.9,2665.3,11.5598579]
[1739204355979,3.0,2666.1,2665.3,11.5598579]
[1739204355980,3.75089,2666.1,2665.3,11.5598579]
[1739204356181,3.75068,2666.2,2665.6,3.75149]
[1739204356424,3.75079,2666.1,2665.5,3.75153]
[1739204357225,3.75778,2666.5,2665.5,6.87566]
[1739204357536,3.75052,2666.3,2665.7,3.75126]
[1739204358125,3.75028,2666.5,2666.0,0.7907]
[1739204358329,4.54594,2666.9,2666.0,0.7907]
[1739204358526,0.7962,2667.2,2666.0,0.7907]
[1739204358726,0.7962,2667.2,2666.2,3.75058]
[1739204359039,0.7962,2667.2,2666.3,41.87566]
[1739204359040,3.74966,2667.0,2666.3,41.87566]
[1739204359340,3.74971,2666.9,2666.3,6.87566]
[1739204359538,3.74994,2666.8,2666.3,6.87566]
[1739204359698,3.74993,2666.8,2666.3,6.87566]
[1739204359906,3.75004,2666.7,2666.3,6.87566]
[1739204360101,3.74988,2666.8,2666.3,6.87566]
[1739204360615,3.74958,2667.0,2666.4,3.75037]
[1739204360799,3.74958,2667.0,2666.5,0.7907]
[1739204361005,3.75005,2666.7,2666.3,6.87566]
[1739204361236,3.74973,2666.9,2666.3,6.87566]
[1739204361432,3.74945,2667.1,2666.3,6.87566]
[1739204361605,3.74945,2667.1,2666.4,3.75026]
[1739204361807,0.7962,2667.2,2666.3,6.87566]
[1739204361808,3.74975,2666.9,2666.3,6.87566]
[1739204362231,3.74975,2666.9,2666.3,10.62612]
[1739204362441,7.49954,2666.9,2666.3,10.62612]
[1739204362646,3.75004,2666.7,2666.4,6.87566]
[1739204362822,3.75023,2666.5,2666.4,6.87566]
[1739204363153,3.75009,2666.6,2666.2,0.7907]
[1739204363321,7.50029,2666.6,2666.4,0.06273488]
[1739204363504,3.75009,2666.6,2666.3,0.06283779]
[1739204363705,3.75024,2666.5,2666.2,0.7907]
[1739204364038,3.75009,2666.6,2666.2,0.7907]
[1739204364244,3.74985,2666.8,2666.2,0.7907]
[1739204364471,4.54552,2667.2,2666.3,0.03749863]
[1739204364603,3.74953,2667.0,2666.4,10.62603]
[1739204364807,3.74968,2666.9,2666.4,10.62603]
[1739204365233,3.0075,2667.4,2666.4,10.62603]
[1739204365234,3.75023,2666.5,2666.4,6.87566]
[1739204365441,0.8112,2666.6,2666.1,3.75078]
[1739204365604,0.8112,2666.6,2665.5,4.54229]
[1739204365605,3.75095,2666.0,2665.6,6.87566]
[1739204365810,3.0,2666.5,2665.6,6.87566]
[1739204366010,3.75135,2665.7,2665.6,6.87566]
[1739204366203,3.75135,2665.7,2665.3,7.0214379]
[1739204366702,7.50263,2665.8,2665.3,7.0214379]
[1739204366902,0.7962,2666.3,2665.3,7.0214379]
[1739204367105,3.75069,2666.2,2665.6,0.7907]
[1739204367299,3.75081,2666.1,2665.6,4.54218]
[1739204367556,3.75081,2666.1,2665.6,4.54215]
[1739204368043,3.75074,2666.2,2665.6,0.7907]
[1739204368291,3.75074,2666.2,2665.7,3.75132]
[1739204368453,3.75092,2666.1,2665.6,0.7907]
[1739204368607,3.75074,2666.2,2665.6,0.7907]
[1739204368807,3.7504,2666.4,2665.7,3.75124]
[1739204369059,3.75026,2666.5,2665.8,0.55]
[1739204369207,4.54633,2666.6,2665.8,0.55]
[1739204369208,3.75013,2666.6,2666.0,3.75091]
[1739204369409,3.75026,2666.5,2666.1,0.7907]
[1739204369606,3.75013,2666.6,2666.1,0.7907]
[1739204369851,3.75002,2666.7,2666.1,11.41708]
[1739204370160,3.75002,2666.7,2666.1,11.41706]
[1739204370448,3.74967,2666.9,2666.3,3.75047]
[1739204370647,6.75649,2667.4,2666.7,3.74994]
[1739204370648,3.74919,2667.3,2666.7,3.74994]
[1739204370859,3.74939,2667.1,2666.6,10.62573]
[1739204371211,0.0075,2666.9,2666.0,0.8106]
[1739204371411,3.7502,2666.6,2666.0,4.56145]
[1739204371615,0.0075,2666.9,2666.0,0.8106]
[1739204371810,3.75061,2666.3,2666.0,7.68626]
[1739204372020,0.0075,2666.9,2665.8,6.87566]
[1739204372021,3.74995,2666.7,2665.8,6.87566]
[1739204372333,3.75107,2665.9,2665.8,6.87566]
[1739204372665,7.50197,2666.0,2665.8,6.87566]
[1739204372868,3.75107,2665.9,2665.8,6.87566]
[1739204373248,3.75094,2666.0,2665.8,6.87566]
[1739204373450,3.75083,2666.1,2665.8,6.87566]
[1739204373640,3.75107,2665.9,2665.8,6.87566]
[1739204373967,3.8066,2666.4,2665.8,6.87566]
[1739204374128,3.75096,2666.0,2665.8,6.87566]
[1739204375063,3.75096,2666.0,2665.6,6.87566]
[1739204375367,3.75093,2666.1,2665.6,6.87566]
[1739204375522,7.50184,2666.1,2665.6,6.87566]
[1739204375723,3.75063,2666.3,2665.7,0.55]
[1739204375951,3.75063,2666.3,2665.8,3.75114]
[1739204376265,3.75027,2666.5,2665.9,0.8106]
[1739204376467,3.75027,2666.5,2665.9,4.56158]
[1739204376674,3.75004,2666.7,2666.1,3.75074]
[1739204376823,0.8066,2667.0,2666.6,3.74997]
[1739204377023,4.55577,2667.3,2666.6,3.74997]
[1739204377264,3.74933,2667.2,2666.6,3.74997]
[1739204377450,3.74948,2667.1,2666.5,4.56075]
[1739204377737,6.74963,2667.0,2666.5,4.56075]
[1739204378326,6.74963,2667.0,2666.6,0.05424494]
[1739204378877,3.74995,2666.7,2666.6,0.05424494]
[1739204379084,3.75051,2666.3,2666.2,6.87566]
[1739204379225,7.50182,2666.1,2665.6,7.68626]
[1739204379579,3.75095,2666.0,2665.6,7.68626]
[1739204380085,0.8066,2666.2,2665.6,7.68626]
[1739204380260,0.8066,2666.2,2665.5,0.3911251]
[1739204380459,3.75143,2665.7,2665.5,0.3911251]
[1739204380687,3.75111,2665.9,2665.5,0.3911251]
[1739204381381,3.75094,2666.0,2665.5,0.3911251]
[1739204381581,3.0,2666.1,2665.6,3.75148]
[1739204381773,3.7508,2666.1,2665.7,0.8106]
[1739204381979,3.75095,2666.0,2665.7,0.8106]
[1739204382472,3.75067,2666.2,2665.7,0.8106]
[1739204382473,3.7508,2666.1,2665.7,0.8106]
[1739204382676,0.8066,2666.4,2665.9,3.75106]
[1739204382984,0.8066,2666.4,2665.7,0.8106]
[1739204382985,3.75059,2666.3,2665.7,4.56185]
[1739204383187,0.8066,2666.4,2665.7,4.56185]
[1739204383488,3.75055,2666.3,2665.8,3.75107]
[1739204384189,3.75031,2666.5,2665.9,3.75107]
[1739204384492,3.75012,2666.6,2666.0,3.7509]
[1739204384657,3.75005,2666.7,2666.2,4.30064]
[1739204385160,3.75003,2666.7,2666.2,0.55]
[1739204385358,3.75045,2666.4,2666.1,0.8131]
[1739204385800,3.75046,2666.4,2666.1,0.8131]
[1739204386083,3.75021,2666.6,2666.1,0.8131]
[1739204386293,3.75031,2666.5,2666.1,0.8131]
[1739204386464,3.75021,2666.6,2666.1,0.8131]
[1739204386794,7.49977,2666.8,2666.2,3.75065]
[1739204387129,3.75027,2666.5,2666.1,7.68876]
[1739204387485,3.75064,2666.3,2666.1,6.87566]
[1739204387685,3.75064,2666.3,2665.9,5.39]
[1739204388001,3.75037,2666.4,2665.9,9.14106]
[1739204388425,3.75033,2666.5,2665.9,9.14106]
[1739204388628,6.75014,2666.6,2665.9,5.39]
[1739204388929,3.0,2666.6,2666.1,3.75072]
[1739204389442,3.0,2666.6,2666.1,3.75069]
[1739204389789,3.75011,2666.6,2666.1,3.75069]
[1739204390413,3.75011,2666.6,2665.9,9.14098]
[1739204390414,3.75001,2666.7,2665.9,9.14098]
[1739204390626,3.75016,2666.6,2666.0,3.75083]
[1739204390832,3.75025,2666.5,2666.0,3.75083]
[1739204390989,3.75001,2666.7,2666.0,3.75083]
[1739204391312,0.8296,2667.0,2666.3,0.8131]
[1739204391653,3.74974,2666.9,2666.4,3.75026]
[1739204391936,3.0,2667.2,2666.3,0.8131]
[1739204392119,3.75014,2666.6,2666.3,0.8131]
[1739204393406,3.75014,2666.6,2666.4,0.05447729]
[1739204394144,3.75023,2666.5,2666.4,0.05447729]
[1739204394485,3.75057,2666.3,2666.0,6.87566]
[1739204394839,3.75057,2666.3,2665.8,6.87566]
[1739204395000,3.75057,2666.3,2665.8,10.62685]
[1739204397632,3.7503,2666.5,2665.9,3.75107]
[1739204397802,3.7503,2666.5,2666.0,3.75091]
[1739204398429,3.75005,2666.7,2666.0,3.75091]
[1739204398629,3.75005,2666.7,2666.1,4.58222]
[1739204398829,3.75009,2666.6,2666.1,11.45788]
[1739204398990,3.75005,2666.7,2666.1,11.45784]
[1739204399192,3.7501,2666.6,2666.1,15.20855]
[1739204399531,3.0,2666.7,2666.2,3.75064]
[1739204399931,6.75006,2666.7,2666.2,3.75064]
[1739204400435,3.0,2666.7,2666.2,3.75064]
[1739204400645,6.75001,2666.7,2666.2,3.75064]
[1739204400937,6.75001,2666.7,2666.1,7.70716]
[1739204400938,0.0075,2666.8,2666.1,6.87566]
[1739204401119,3.75055,2666.3,2666.1,6.87566]
[1739204401292,3.75003,2666.7,2666.2,3.75065]
[1739204401492,3.75003,2666.7,2666.1,10.62632]
[1739204401689,3.0,2666.8,2666.1,6.87566]
[1739204401893,3.75045,2666.4,2666.1,6.87566]
[1739204402344,3.75058,2666.3,2666.1,6.87566]
[1739204402791,0.7543,2666.5,2666.1,6.87566]
[1739204402994,3.75037,2666.5,2666.1,6.87566]
[1739204403595,3.75065,2666.2,2666.1,6.87566]
[1739204404622,3.75052,2666.3,2666.1,6.87566]
[1739204404623,3.75054,2666.3,2666.1,6.87566]
[1739204404836,3.75032,2666.5,2665.9,9.14107]
[1739204405040,3.75031,2666.5,2666.0,3.75084]
[1739204405241,0.7543,2666.7,2665.9,9.14107]
[1739204405733,3.75016,2666.6,2666.1,3.75077]
[1739204406042,3.75016,2666.6,2666.1,3.75071]
[1739204406403,3.75016,2666.6,2666.2,3.75064]
[1739204406898,3.0,2666.7,2666.1,3.75071]
[1739204407214,0.7543,2667.0,2666.2,0.86260038]
[1739204407215,3.74962,2667.0,2666.2,0.86260038]
[1739204407536,3.74962,2667.0,2666.5,3.75013]
[1739204407739,3.74962,2667.0,2666.3,3.75045]
[1739204407915,3.74987,2666.8,2666.3,7.50089]
[1739204408118,3.74987,2666.8,2666.3,3.75044]
[1739204408343,0.7543,2667.1,2666.4,0.05446066]
[1739204408553,4.50453,2666.5,2666.4,0.05446066]
[1739204408697,4.50417,2666.8,2666.3,3.75043]
[1739204408898,3.75016,2666.6,2666.4,0.05436758]
[1739204409245,3.0075,2666.8,2666.5,0.05430124]
[1739204409399,3.75051,2666.3,2666.2,6.87566]
[1739204409625,3.75069,2666.2,2665.9,5.7798374]
[1739204409827,3.75051,2666.3,2665.9,5.7798374]
[1739204410020,3.75032,2666.5,2665.9,9.5307774]
[1739204410270,3.75032,2666.5,2665.9,5.7798374]
[1739204410479,3.75032,2666.5,2666.0,3.75091]
[1739204410625,0.7543,2666.7,2666.1,0.03750716]
[1739204410824,3.75047,2666.4,2665.9,9.5308874]
[1739204412253,3.75047,2666.4,2665.9,5.7798374]
[1739204412254,3.75052,2666.3,2665.9,5.7798374]
[1739204412773,0.7543,2666.7,2666.0,3.75091]
[1739204412964,3.75009,2666.6,2666.1,3.75069]
[1739204413169,3.75009,2666.6,2666.0,3.75091]
[1739204413170,3.7503,2666.5,2666.0,3.75091]
[1739204413770,3.75037,2666.4,2665.9,9.5308274]
[1739204414143,3.75037,2666.4,2665.9,9.5308774]
[1739204414527,3.75037,2666.4,2666.0,3.75092]
[1739204414946,3.75019,2666.6,2666.0,3.75092]
[1739204415142,3.74999,2666.7,2666.3,4.5781]
[1739204415480,0.8019,2667.0,2666.5,3.75014]
[1739204415772,3.74969,2666.9,2666.5,6.87566]
[1739204415942,7.49946,2666.9,2666.5,6.87566]
[1739204416146,3.74982,2666.8,2666.5,6.87566]
[1739204416377,3.74969,2666.9,2666.5,6.87566]
[1739204416948,3.74988,2666.8,2666.5,6.87566]
[1739204417260,3.75004,2666.7,2666.5,6.87566]
[1739204417571,3.74983,2666.8,2666.5,6.87566]
[1739204417777,3.75009,2666.6,2666.5,6.87566]
[1739204417947,3.75759,2666.6,2666.5,6.87566]
[1739204418850,4.55949,2666.6,2666.5,6.87566]
[1739204419436,3.8169,2666.6,2665.9,0.3898374]
[1739204419635,4.55281,2666.1,2665.9,0.3898374]
[1739204420075,8.3037,2666.1,2665.9,0.3898374]
[1739204420271,4.55279,2666.1,2665.9,0.3898374]
[1739204420884,3.75089,2666.1,2665.9,0.3898374]
[1739204421680,3.75059,2666.3,2665.9,0.3898374]
[1739204421841,3.75065,2666.2,2665.9,0.3898374]
[1739204422037,3.75087,2666.1,2665.9,0.3898374]
[1739204422736,3.75068,2666.2,2665.9,0.3898374]
[1739204422937,3.75059,2666.3,2665.9,0.3898374]
[1739204423251,3.75082,2666.1,2666.0,0.05270434]
[1739204424634,3.75066,2666.2,2665.6,0.39004385]
[1739204424971,3.75095,2666.0,2665.7,0.05301318]
[1739204425437,3.73106955,2666.0,2665.7,0.05301318]
[1739204426353,3.75108,2665.9,2665.7,0.05301318]
[1739204426676,3.75121,2665.8,2665.7,0.05301318]
[1739204426888,3.75121,2665.8,2665.4,7.70326]
[1739204427192,3.7514,2665.7,2665.4,7.70326]
[1739204427341,3.75121,2665.8,2665.4,7.70326]
[1739204427542,3.75146,2665.7,2665.4,7.70326]
[1739204428041,7.50204,2666.0,2665.4,11.45494]
[1739204428241,3.75081,2666.1,2665.5,0.03751405]
[1739204428481,3.75101,2666.0,2665.5,3.7515]
[1739204429096,3.75082,2666.1,2665.6,3.75141]
[1739204429596,3.75095,2666.0,2665.7,8.75]
[1739204430290,3.0,2666.4,2665.7,8.75]
[1739204430590,3.0,2666.6,2666.1,3.75072]
[1739204430591,3.75011,2666.6,2666.1,3.75072]
[1739204430760,7.50034,2666.6,2666.2,0.8066]
[1739204430958,3.75011,2666.6,2666.2,9.5566]
[1739204431182,3.75023,2666.5,2666.3,8.75]
[1739204431675,3.75037,2666.5,2666.3,8.75]
[1739204431873,3.75011,2666.6,2666.3,8.75]
[1739204432056,3.75037,2666.4,2666.3,8.75]
[1739204432264,3.75025,2666.5,2666.3,8.75]
[1739204432460,3.75037,2666.4,2666.3,8.75]
[1739204433091,3.74878,2667.6,2666.3,8.75]
[1739204433092,3.74967,2666.9,2666.3,8.75]
[1739204433259,3.74967,2666.9,2666.3,12.50046]
[1739204433464,3.74954,2667.0,2666.5,3.75016]
[1739204433674,3.74926,2667.2,2666.7,3.74995]
[1739204433848,3.7494,2667.1,2666.6,12.49997]
[1739204434247,3.7494,2667.1,2666.6,8.75]
[1739204434479,0.0075,2667.1,2666.6,8.75]
[1739204434789,3.74995,2666.7,2666.6,8.75]
[1739204436177,4.51325,2666.7,2666.6,8.75]
[1739204436751,3.75051,2666.3,2666.2,8.75]
[1739204436956,3.75051,2666.3,2665.9,0.8066]
[1739204437490,7.5011,2666.3,2665.9,0.8066]
[1739204437690,3.75075,2666.2,2665.9,0.8066]
[1739204437894,3.75075,2666.2,2665.6,3.75141]
[1739204437895,3.7511,2665.9,2665.6,0.8066]
[1739204438079,3.75143,2665.7,2665.4,8.75]
[1739204438285,3.75164,2665.5,2665.4,8.75]
[1739204438480,3.75143,2665.7,2665.4,8.75]
[1739204439199,3.75115,2665.9,2665.4,8.75]
[1739204439504,7.5017,2666.1,2665.5,3.75159]
[1739204439791,3.7633,2666.4,2665.4,8.75]
[1739204439998,3.7512,2665.9,2665.4,8.75]
[1739204440201,0.0075,2666.2,2665.4,8.75]
[1739204440407,7.50295,2665.7,2665.4,8.75]
[1739204440574,3.75152,2665.6,2665.4,8.75]
[1739204440773,7.50295,2665.7,2665.4,8.75]
[1739204440981,3.75147,2665.7,2665.4,8.75]
[1739204441158,3.7516,2665.6,2665.4,8.75]
[1739204441350,3.75145,2665.7,2665.4,8.75]
[1739204441552,7.50291,2665.7,2665.4,8.75]
[1739204441965,3.75153,2665.6,2665.4,8.75]
[1739204443184,3.75164,2665.5,2665.3,1.34234745]
[1739204443438,4.51508,2665.4,2665.3,7.9e-06]
[1739204443570,7.51508,2665.4,2665.3,7.9e-06]
[1739204445871,3.75143,2665.7,2665.3,0.7540079]
[1739204446078,3.75152,2665.6,2665.3,0.7540079]
[1739204447074,3.0,2665.9,2665.3,0.7540079]
[1739204447289,0.7996,2666.0,2665.3,7.9e-06]
[1739204447485,3.0075,2665.8,2665.3,7.9e-06]
[1739204447697,3.7516,2665.6,2665.3,7.9e-06]
[1739204448417,3.75135,2665.7,2665.3,7.9e-06]
[1739204449113,7.50281,2665.7,2665.3,7.9e-06]
[1739204449284,3.75135,2665.7,2665.3,8.7500079]
[1739204450385,3.75159,2665.6,2665.3,8.7500079]
[1739204450725,3.75156,2665.6,2665.3,8.7500079]
[1739204451156,3.75135,2665.7,2665.3,8.7500079]
[1739204451850,0.0075,2665.8,2665.3,8.7500079]
[1739204452060,3.0,2665.9,2665.3,8.7500079]
[1739204452061,3.7516,2665.6,2665.3,8.7500079]
[1739204452210,3.75178,2665.4,2665.3,8.7500079]
[1739204453022,3.75173,2665.5,2665.3,8.7500079]
[1739204453457,3.75173,2665.5,2665.4,0.05701777]
[1739204453829,3.75151,2665.6,2665.4,0.05701777]
[1739204454024,7.50314,2665.6,2665.4,0.05701777]
[1739204454353,3.75151,2665.6,2665.4,0.05701777]
[1739204454771,3.75129,2665.8,2665.4,0.05701777]
[1739204454911,3.0,2665.9,2665.5,0.754]
[1739204455118,3.75121,2665.8,2665.5,0.81083986]
[1739204455320,3.0,2665.9,2665.5,0.81083986]
[1739204455554,4.55061,2666.0,2665.5,0.81083986]
[1739204455855,3.75101,2666.0,2665.5,0.81083986]
[1739204456078,7.50204,2666.0,2665.5,0.81083986]
[1739204456379,3.75101,2666.0,2665.5,4.56246986]
[1739204456687,0.7996,2666.6,2665.5,0.81083986]
[1739204456839,4.54977,2666.6,2666.0,7.50169]
[1739204457039,3.75033,2666.5,2666.1,0.05621081]
[1739204457239,3.75033,2666.5,2666.1,0.81021081]
[1739204457986,6.75011,2666.6,2666.1,0.81021081]
[1739204458285,3.75031,2666.5,2666.1,0.81021081]
[1739204458587,1.54033166,2666.9,2666.3,3.75049]
[1739204458588,5.29007166,2666.9,2666.3,3.75049]
[1739204458888,3.74991,2666.8,2666.3,3.75049]
[1739204459101,2.87525409,2667.1,2666.4,0.05589638]
[1739204459385,3.7496,2667.0,2666.6,0.8114]
[1739204459704,3.75003,2666.7,2666.5,0.05579159]
[1739204459984,3.75003,2666.7,2666.4,0.8114]
[1739204460440,2.87525409,2667.1,2666.2,8.75]
[1739204460647,3.75037,2666.5,2666.2,8.75]
[1739204460888,3.75051,2666.3,2666.2,8.75]
[1739204461480,3.0,2666.7,2666.2,8.75]
[1739204461690,6.75002,2666.7,2666.2,12.50056]
[1739204461890,0.0075,2666.9,2666.2,8.75]
[1739204462187,3.75051,2666.3,2666.2,8.75]
[1739204462990,3.75114,2665.9,2665.6,0.8114]
[1739204463369,3.7509,2666.1,2665.6,4.56289]
[1739204463692,3.75098,2666.0,2665.6,0.8114]
[1739204463848,3.75123,2665.8,2665.5,8.75]
[1739204464054,3.75123,2665.8,2665.3,0.8114079]